bitfinex-derivatives/quotes_ETHF0:USTF0_20240826
["timestamp","ask_amount","ask_price","bid_price","bid_amount"]
[1724641001446,0.36446,2742.7,2742.6,1.6623]
[1724641001845,0.36446,2742.7,2742.6,1.31]
[1724641002052,1.31977911,2742.8,2742.3,0.00817833]
[1724641002253,1.31977911,2742.8,2742.3,1.31817833]
[1724641002254,0.36449,2742.5,2742.3,1.31817833]
[1724641002454,0.3542,2742.4,2742.3,1.31817833]
[1724641002650,0.7339,2742.4,2742.3,1.31817833]
[1724641005049,0.3864,2742.6,2742.3,1.68268833]
[1724641005352,0.3864,2742.6,2742.5,1.31]
[1724641005567,0.75087,2742.6,2742.5,1.31]
[1724641006049,0.7134,2742.7,2742.5,1.31]
[1724641006251,0.00977911,2742.8,2742.6,0.36446]
[1724641006452,0.00977911,2742.8,2742.7,1.6932]
[1724641008153,0.00977911,2742.8,2742.7,5.70326]
[1724641008355,0.00977911,2742.8,2742.7,2.05766]
[1724641008545,0.00977911,2742.8,2742.7,5.70326]
[1724641013157,0.00977911,2742.8,2742.7,3.6456]
[1724641013355,0.00977911,2742.8,2742.6,0.3728]
[1724641013668,0.37421911,2742.8,2742.7,1.31]
[1724641014355,3.65537911,2742.8,2742.3,0.37337833]
[1724641014559,3.65537911,2742.8,2742.3,1.68337833]
[1724641014560,0.3645,2742.4,2742.3,1.68337833]
[1724641014761,3.82026152,2742.4,2742.3,1.68337833]
[1724641014958,3.82026152,2742.4,2742.3,2.04788833]
[1724641015155,3.82026152,2742.5,2742.3,2.04788833]
[1724641015358,3.82026152,2742.5,2742.3,1.68337833]
[1724641015565,4.17396152,2742.5,2742.3,1.68337833]
[1724641015767,3.82026152,2742.4,2742.3,1.68337833]
[1724641017057,3.82026152,2742.4,2742.3,2.04788833]
[1724641017258,4.17396152,2742.5,2742.3,5.69428833]
[1724641017459,4.17396152,2742.5,2742.3,2.04788833]
[1724641018259,3.82026152,2742.5,2742.3,2.04788833]
[1724641018464,3.82026152,2742.5,2742.3,2.42508833]
[1724641018860,3.82026152,2742.5,2742.4,0.3645]
[1724641019060,8.1193197,2742.6,2742.5,0.36448]
[1724641019253,3.82026152,2742.6,2742.5,4.9564]
[1724641019464,3.82026152,2742.6,2742.5,5.32088]
[1724641019665,3.82026152,2742.6,2742.5,1.31]
[1724641019960,3.82026152,2742.6,2742.5,4.9564]
[1724641020360,3.82026152,2742.6,2742.5,1.31]
[1724641020768,3.82026152,2742.6,2742.5,4.9564]
[1724641021664,4.18473152,2742.6,2742.5,4.9564]
[1724641021872,0.36447,2742.6,2742.5,1.31]
[1724641024265,0.36446,2742.7,2742.5,1.31]
[1724641024468,0.36446,2742.7,2742.6,1.31]
[1724641025167,0.73992911,2742.8,2742.6,1.31]
[1724641025465,0.37547911,2742.8,2742.6,1.67446]
[1724641025655,0.37547911,2742.8,2742.7,0.3607]
[1724641026361,0.37547911,2742.8,2742.7,0.72516]
[1724641026667,0.37547911,2742.8,2742.7,0.3607]
[1724641027269,0.00977911,2742.8,2742.7,0.72516]
[1724641027472,0.00977911,2742.8,2742.7,4.37076]
[1724641035270,0.00977911,2742.8,2742.7,0.36446]
[1724641035583,0.00977911,2742.8,2742.7,1.67446]
[1724641036079,0.00977911,2742.8,2742.7,5.32006]
[1724641038179,0.00977911,2742.8,2742.7,8.52786]
[1724641047678,0.00977911,2742.8,2742.7,4.88226]
[1724641048172,0.00977911,2742.8,2742.7,8.52786]
[1724641048875,0.00977911,2742.8,2742.7,4.88226]
[1724641049379,0.00977911,2742.8,2742.7,8.52786]
[1724641050472,0.00977911,2742.8,2742.7,4.88226]
[1724641052579,0.00977911,2742.8,2742.7,1.67446]
[1724641052979,0.00977911,2742.8,2742.7,4.88226]
[1724641055986,0.00977911,2742.8,2742.7,8.52786]
[1724641056491,0.00977911,2742.8,2742.7,8.87846]
[1724641059088,0.00977911,2742.8,2742.7,9.83353218]
[1724641059682,0.3504,2743.2,2743.1,0.3644]
[1724641059877,0.3504,2743.2,2743.1,1.6744]
[1724641060782,0.35490436,2743.2,2743.1,1.6744]
[1724641061788,0.36433,2743.7,2743.1,1.6744]
[1724641061789,0.36428,2744.1,2743.1,13.77345114]
[1724641061986,0.7359,2743.8,2743.7,0.36432]
[1724641062187,0.7359,2743.8,2743.7,1.31]
[1724641062589,0.7359,2743.8,2743.7,1.67432]
[1724641062890,0.73927516,2743.8,2743.7,1.67432]
[1724641063690,0.73927516,2743.8,2743.7,1.31]
[1724641064080,4.38407516,2743.8,2743.2,1.31892036]
[1724641064281,0.36432,2743.7,2743.6,1.31]
[1724641064794,4.00912,2743.7,2743.6,1.31]
[1724641065296,3.6448,2743.7,2743.0,4.55941]
[1724641065481,0.36436,2743.5,2743.4,1.31]
[1724641065882,4.00916,2743.5,2743.4,1.31]
[1724641066085,4.00916,2743.5,2743.0,0.36441]
[1724641066287,1.07607,2743.4,2743.0,0.36441]
[1724641066496,0.3548,2743.3,2742.9,0.36442]
[1724641067095,0.3548,2743.3,2742.8,0.36443]
[1724641067304,0.3548,2743.3,2743.2,1.31]
[1724641067481,4.36478,2743.3,2743.2,1.31]
[1724641067680,13.18504152,2743.3,2743.2,1.31]
[1724641068093,0.36439,2743.2,2743.1,1.31]
[1724641068299,4.18465152,2743.2,2743.1,1.31]
[1724641068597,7.83025152,2743.2,2743.1,1.31]
[1724641069793,4.00999,2743.2,2743.1,1.31]
[1724641069995,4.00999,2743.2,2742.7,3.57225]
[1724641070196,3.81113888,2743.1,2742.7,3.57225]
[1724641070686,0.373,2743.0,2742.7,3.57225]
[1724641070888,0.353,2742.9,2742.7,3.57225]
[1724641071494,0.353,2742.9,2742.8,0.36444]
[1724641072185,0.353,2742.9,2742.7,3.57225]
[1724641072389,0.353,2742.9,2742.7,3.2078]
[1724641072689,0.353,2742.9,2742.7,3.57224]
[1724641073483,0.3772,2742.8,2742.7,3.57224]
[1724641073691,0.3772,2742.8,2742.7,0.36444]
[1724641075200,0.3772,2742.8,2742.5,3.92638]
[1724641075499,0.3772,2742.8,2742.5,6.7119]
[1724641075796,0.3772,2742.8,2742.6,0.36446]
[1724641076298,0.373,2743.0,2742.5,6.7119]
[1724641076494,0.373,2743.0,2742.8,0.36444]
[1724641080310,0.373,2743.0,2742.7,0.36445]
[1724641080909,0.373,2743.0,2742.6,3.2078]
[1724641081506,0.73742,2743.0,2742.7,0.36445]
[1724641081901,0.373,2743.0,2742.6,3.2078]
[1724641082103,0.373,2743.0,2742.7,0.36445]
[1724641082309,0.373,2743.0,2742.8,0.36444]
[1724641082508,4.54213888,2743.2,2742.8,3.15]
[1724641082806,0.731,2743.2,2743.0,0.36441]
[1724641083399,1.09539,2743.2,2743.0,0.36441]
[1724641084404,1.09539,2743.2,2742.9,1.48652]
[1724641084606,1.09539,2743.2,2743.0,0.36441]
[1724641084805,1.09539,2743.2,2742.9,0.74252]
[1724641086108,0.731,2743.2,2743.0,0.36441]
[1724641086609,0.3644,2743.1,2742.8,0.36443]
[1724641087001,4.55665,2743.0,2742.6,3.2078]
[1724641087302,0.36444,2742.9,2742.6,3.57227]
[1724641087498,0.74044,2742.9,2742.6,3.57227]
[1724641087705,0.36445,2742.8,2742.6,3.57227]
[1724641087906,0.7055,2742.7,2742.6,3.2078]
[1724641088413,0.7055,2742.7,2742.6,3.57227]
[1724641089908,0.7055,2742.7,2742.6,0.36447]
[1724641091010,0.7055,2742.7,2742.5,0.73148]
[1724641092118,0.7055,2742.7,2742.6,1.67447]
[1724641093010,0.7055,2742.7,2742.6,1.31]
[1724641093613,0.7055,2742.7,2742.6,1.67447]
[1724641095516,0.3533,2742.7,2742.6,1.67447]
[1724641097514,0.376,2742.9,2742.7,0.36445]
[1724641097714,0.376,2742.9,2742.8,1.31]
[1724641098619,0.74043,2742.9,2742.8,1.31]
[1724641098816,4.38603,2742.9,2742.8,1.31]
[1724641100415,0.74043,2742.9,2742.8,1.31]
[1724641100721,0.376,2742.9,2742.8,1.31]
[1724641100924,0.74043,2742.9,2742.8,1.31]
[1724641101623,0.376,2742.9,2742.8,1.31]
[1724641103116,0.74043,2742.9,2742.8,1.31]
[1724641103324,0.376,2742.9,2742.8,1.31]
[1724641104217,0.376,2742.9,2742.8,1.67444]
[1724641104618,0.3806,2743.1,2742.9,0.36442]
[1724641104819,0.3806,2743.1,2743.0,2.05502]
[1724641105619,0.3806,2743.1,2743.0,1.6906]
[1724641110416,4.0262,2743.1,2742.6,0.3699]
[1724641110617,0.36442,2743.0,2742.9,1.31]
[1724641111116,4.01002,2743.0,2742.9,1.31]
[1724641111319,7.82115888,2743.0,2742.9,1.31]
[1724641112323,4.01002,2743.0,2742.9,1.31]
[1724641114429,12.76448,2743.0,2742.3,4.95027833]
[1724641114614,0.36446,2742.7,2742.4,2.04269]
[1724641114818,0.7372,2742.6,2742.4,0.73269]
[1724641115720,0.7372,2742.6,2742.5,0.36448]
[1724641116020,0.3526,2742.6,2742.5,1.67448]
[1724641116420,0.3526,2742.6,2742.5,1.31]
[1724641116737,0.3526,2742.6,2742.5,1.67448]
[1724641118634,0.74905,2742.8,2742.5,1.67448]
[1724641118932,0.74905,2742.8,2742.7,1.31]
[1724641121235,0.3846,2742.8,2742.7,1.31]
[1724641121724,0.3846,2742.8,2742.7,1.67446]
[1724641121929,0.3846,2742.8,2742.7,1.31]
[1724641123437,0.74904,2742.8,2742.7,1.31]
[1724641127131,4.56017888,2742.8,2742.7,1.31]
[1724641132037,4.19573888,2742.8,2742.6,1.31]
[1724641132237,0.36447,2742.7,2742.6,1.31]
[1724641135433,3.2078,2743.2,2742.6,1.31]
[1724641135728,0.36446,2742.7,2742.6,1.31]
[1724641137923,0.36446,2742.7,2742.5,1.31]
[1724641138124,0.7497,2742.6,2742.5,1.31]
[1724641138736,1.11417,2742.6,2742.5,1.31]
[1724641139632,1.11417,2742.6,2742.4,0.3682]
[1724641139633,1.11417,2742.6,2742.4,1.6782]
[1724641140636,0.36448,2742.5,2742.4,0.3682]
[1724641140829,0.73708,2742.5,2742.4,0.3682]
[1724641141433,0.3645,2742.4,2742.3,1.31817833]
[1724641141633,0.3726,2742.5,2742.3,1.31817833]
[1724641142329,0.3726,2742.5,2742.4,0.3645]
[1724641142530,0.7497,2742.6,2742.4,0.3645]
[1724641142732,0.3667,2742.6,2742.5,1.31]
[1724641143239,4.90568888,2742.8,2742.5,1.31]
[1724641143437,4.90568888,2742.8,2742.7,1.31]
[1724641143631,0.36447,2742.7,2742.5,1.31]
[1724641143836,4.18118705,2742.7,2742.5,1.31]
[1724641144537,0.36447,2742.6,2742.5,1.31]
[1724641145440,0.3777,2742.6,2742.5,1.31]
[1724641145825,0.74217,2742.6,2742.5,1.31]
[1724641146029,0.74217,2742.6,2742.3,0.37267833]
[1724641146030,0.74217,2742.6,2742.4,1.31]
[1724641146437,0.36448,2742.5,2742.4,1.31]
[1724641147339,0.3645,2742.4,2742.3,0.00817833]
[1724641147531,1.085,2742.4,2742.3,0.00817833]
[1724641147837,1.085,2742.4,2742.3,1.31817833]
[1724641148236,0.7205,2742.4,2742.3,1.31817833]
[1724641149938,0.3777,2742.6,2742.3,1.31817833]
[1724641150236,0.7296,2742.6,2742.4,1.67449]
[1724641150436,0.3875,2742.7,2742.6,0.36447]
[1724641150643,1.49782,2743.0,2742.7,0.36445]
[1724641150832,0.36443,2742.9,2742.8,1.31]
[1724641151233,4.01003,2742.9,2742.7,1.31]
[1724641151534,0.36443,2742.9,2742.7,1.31]
[1724641153042,1.49783,2743.0,2742.7,1.67446]
[1724641153242,0.36443,2742.9,2742.8,0.357]
[1724641153844,4.01003,2742.9,2742.8,0.357]
[1724641154239,0.36444,2742.8,2742.7,1.31]
[1724641156239,4.18115705,2742.8,2742.7,1.31]
[1724641157242,0.36444,2742.8,2742.7,1.31]
[1724641157635,4.18078069,2742.8,2742.7,1.31]
[1724641158548,0.36444,2742.8,2742.7,1.31]
[1724641164544,0.3645,2742.4,2742.3,1.31817833]
[1724641167948,1.13018,2742.6,2742.3,1.68268833]
[1724641168137,1.13018,2742.6,2742.5,1.31]
[1724641170650,4.33798,2742.6,2742.5,1.31]
[1724641171341,8.15782306,2742.6,2742.5,1.31]
[1724641172053,4.95002306,2742.6,2742.5,1.31]
[1724641174449,3.81984306,2742.6,2742.5,1.31]
[1724641174850,4.18431306,2742.6,2742.5,1.31]
[1724641176453,0.36447,2742.6,2742.5,1.31]
[1724641176747,4.18431306,2742.6,2742.5,1.31]
[1724641176954,3.81984306,2742.6,2742.5,1.31]
[1724641177148,4.55150306,2742.7,2742.5,1.6788]
[1724641179446,0.73166,2742.7,2742.5,1.6788]
[1724641179842,0.3672,2742.7,2742.5,2.04328]
[1724641180854,0.3672,2742.7,2742.5,1.6788]
[1724641182650,0.3598,2742.8,2742.5,1.6788]
[1724641182956,0.72424,2742.8,2742.7,1.31]
[1724641183149,0.3598,2742.8,2742.7,1.31]
[1724641184851,0.72424,2742.8,2742.7,1.31]
[1724641185355,1.6698,2742.8,2742.4,0.3659]
[1724641185556,1.6698,2742.8,2742.4,1.6759]
[1724641185751,0.36448,2742.6,2742.4,1.6759]
[1724641187858,0.36446,2742.7,2742.5,1.31]
[1724641188062,0.36447,2742.6,2742.5,1.31]
[1724641188257,0.36446,2742.7,2742.5,1.31]
[1724641188450,2.03425,2742.8,2742.5,1.67448]
[1724641188649,0.72425,2742.8,2742.5,1.67448]
[1724641189364,0.72425,2742.8,2742.5,1.31]
[1724641189551,0.72425,2742.8,2742.5,1.67448]
[1724641190963,0.72425,2742.8,2742.5,1.31]
[1724641191562,0.72425,2742.8,2742.6,1.31]
[1724641192362,0.3598,2742.8,2742.6,1.31]
[1724641192558,0.3598,2742.8,2742.7,0.3838]
[1724641192964,0.3598,2742.8,2742.7,1.6938]
[1724641194865,8.11604957,2742.9,2742.8,0.36444]
[1724641195064,3.81699139,2743.1,2742.7,5.3394]
[1724641195250,3.81699139,2743.1,2743.0,1.67442]
[1724641195455,3.81699139,2743.1,2743.0,5.32002]
[1724641195651,3.81699139,2743.2,2743.0,5.32002]
[1724641195860,3.81699139,2743.2,2743.1,1.31]
[1724641196165,3.81699139,2743.2,2743.1,1.6763]
[1724641197368,3.81699139,2743.2,2742.4,0.36449]
[1724641197369,0.36444,2742.9,2742.4,0.36449]
[1724641197557,0.36446,2742.7,2742.6,1.31]
[1724641197760,0.36446,2742.7,2742.4,1.31]
[1724641198165,0.36446,2742.7,2742.6,1.31]
[1724641199759,0.36448,2742.6,2742.4,1.31]
[1724641200158,0.36448,2742.5,2742.4,1.31]
[1724641200368,0.36448,2742.5,2742.3,1.67657833]
[1724641200554,6.4287,2742.4,2742.3,0.00817833]
[1724641200755,0.91128,2742.3,2741.8,1.31]
[1724641200961,0.36456,2742.0,2741.8,1.31]
[1724641201165,0.36459,2741.7,2741.6,3.2078]
[1724641201362,1.67459,2741.7,2741.6,3.2078]
[1724641201558,0.36462,2741.5,2741.2,1.66364036]
[1724641201768,0.36805324,2741.5,2741.3,1.31]
[1724641202076,0.00343324,2741.5,2741.4,1.31]
[1724641202275,0.00343324,2741.5,2741.4,1.67463]
[1724641202968,0.00343324,2741.5,2741.4,5.32263]
[1724641204260,0.00343324,2741.5,2741.4,10.32263]
[1724641204880,0.00343324,2741.5,2741.4,14.52628883]
[1724641208277,2.051,2742.3,2741.4,14.52628883]
[1724641208278,1.10552,2742.3,2741.9,0.36456]
[1724641208469,0.3583,2742.3,2742.2,1.31]
[1724641209181,0.3583,2742.3,2742.2,1.67452]
[1724641209182,0.36117006,2742.3,2742.2,1.67452]
[1724641209472,0.36117006,2742.3,2742.2,1.31]
[1724641211673,0.00287006,2742.3,2742.2,1.31]
[1724641212178,0.00287006,2742.3,2742.2,4.9564]
[1724641212374,0.00544265,2742.6,2742.2,4.9564]
[1724641212584,0.00544265,2742.6,2742.5,3.57228]
[1724641212768,0.00544265,2742.6,2742.5,0.3857]
[1724641212969,0.00544265,2742.6,2742.5,1.31]
[1724641213181,0.36991265,2742.6,2742.4,1.31]
[1724641213477,0.37317967,2742.6,2742.4,1.31]
[1724641213680,0.37317967,2742.6,2742.5,1.31]
[1724641213982,0.36451,2742.4,2742.1,4.5178]
[1724641214167,0.36451,2742.4,2742.0,4.91024]
[1724641214168,0.36453,2742.2,2742.0,4.5807]
[1724641214476,1.67452,2742.2,2742.0,4.5807]
[1724641214668,2.4305,2742.3,2742.0,4.5807]
[1724641215376,0.36455,2742.1,2741.9,1.31]
[1724641215975,0.36455,2742.1,2741.8,0.74707]
[1724641216280,0.36453,2742.2,2741.8,0.74707]
[1724641216481,0.36452,2742.2,2741.8,0.74707]
[1724641216878,0.36454,2742.1,2741.8,0.74707]
[1724641217175,0.36454,2742.1,2741.8,0.3825]
[1724641217386,0.36454,2742.1,2741.8,0.74707]
[1724641217576,0.36453,2742.2,2741.8,0.74707]
[1724641217772,1.48502,2742.3,2741.9,0.36456]
[1724641218071,0.36452,2742.2,2741.9,0.36456]
[1724641219575,1.1205,2742.3,2741.7,3.2078]
[1724641219576,0.36457,2741.9,2741.7,3.2078]
[1724641219780,1.46428,2741.8,2741.5,0.36461]
[1724641220578,1.46428,2741.8,2741.4,3.57242]
[1724641220768,1.46428,2741.8,2741.5,0.36461]
[1724641221278,1.0997,2741.8,2741.4,3.2078]
[1724641221472,1.0997,2741.8,2741.7,0.36459]
[1724641221670,6.3578,2742.5,2741.9,0.36456]
[1724641221671,0.7685,2742.1,2741.9,0.36456]
[1724641222077,0.7685,2742.1,2742.0,0.3604]
[1724641222273,1.13304,2742.1,2742.0,0.3604]
[1724641222474,0.36455,2742.0,2741.7,0.36458]
[1724641222681,0.3584,2742.0,2741.8,0.36458]
[1724641223278,0.3584,2742.0,2741.7,0.36458]
[1724641223279,0.72295,2742.0,2741.7,0.36458]
[1724641223478,0.36456,2741.9,2741.6,0.725]
[1724641223871,0.72296,2742.0,2741.7,0.36459]
[1724641225485,0.3584,2742.0,2741.8,0.36458]
[1724641226880,0.3584,2742.0,2741.9,0.36456]
[1724641227371,0.3584,2742.0,2741.7,0.7355]
[1724641227576,0.3809,2742.1,2742.0,0.36455]
[1724641229686,0.3809,2742.1,2741.9,0.36456]
[1724641230183,0.3809,2742.1,2742.0,0.3678]
[1724641230583,4.0281,2742.1,2741.6,0.3646]
[1724641230880,0.36457,2741.9,2741.6,0.3646]
[1724641231281,0.3817,2741.8,2741.6,0.3646]
[1724641233085,0.74628,2741.8,2741.6,0.3646]
[1724641233278,0.3646,2741.7,2741.5,0.3678]
[1724641233479,0.7284,2741.6,2741.4,0.36462]
[1724641234382,0.7284,2741.6,2741.3,3.57243]
[1724641234583,0.7284,2741.6,2741.4,0.36463]
[1724641234584,1.09301,2741.6,2741.4,0.36463]
[1724641235485,1.09301,2741.6,2741.3,3.57244]
[1724641235681,1.09301,2741.6,2741.2,0.37676861]
[1724641235682,0.36464,2741.3,2741.2,0.00316861]
[1724641235879,3.2078,2741.3,2740.3,6.58214863]
[1724641236090,0.36466,2741.2,2740.8,0.36471]
[1724641236378,0.36466,2741.2,2740.7,0.3742]
[1724641236379,3.57245,2741.3,2741.0,0.36468]
[1724641236789,3.57245,2741.3,2741.0,0.36914928]
[1724641236989,3.57245,2741.3,2741.0,0.00446928]
[1724641237184,3.57245,2741.3,2741.0,0.36914928]
[1724641237786,3.2078,2741.3,2741.0,0.00446928]
[1724641238490,0.36466,2741.2,2741.0,0.00446928]
[1724641238799,0.36467,2741.1,2741.0,0.00446928]
[1724641239395,0.36466,2741.2,2741.0,0.00446928]
[1724641239897,0.36467,2741.1,2741.0,0.00446928]
[1724641240497,3.2078,2741.3,2741.0,0.36914928]
[1724641240692,3.2078,2741.3,2741.1,0.38]
[1724641240895,3.2078,2741.3,2741.2,0.3724]
[1724641240896,3.57244,2741.3,2741.2,0.3724]
[1724641243196,3.57244,2741.3,2741.0,0.00446928]
[1724641243197,0.36466,2741.2,2741.0,0.00446928]
[1724641243504,0.74856,2741.2,2741.0,0.00446928]
[1724641243702,0.3839,2741.2,2741.0,0.00446928]
[1724641243891,0.74856,2741.2,2741.0,0.00446928]
[1724641244508,3.57245,2741.3,2741.0,0.36914928]
[1724641244701,3.57245,2741.3,2741.1,0.7296]
[1724641245990,0.36466,2741.2,2741.1,0.7296]
[1724641247602,3.57245,2741.3,2741.1,0.7296]
[1724641248001,0.00546687,2741.4,2741.2,0.36466]
[1724641248196,0.37009687,2741.4,2741.3,0.3593]
[1724641248704,0.00546687,2741.4,2741.3,0.3593]
[1724641250501,0.00546687,2741.4,2741.3,0.72394]
[1724641250697,3.2078,2742.0,2741.3,13.71231721]
[1724641250902,3.2078,2742.0,2741.9,0.36456]
[1724641251303,3.2078,2742.0,2741.8,0.36457]
[1724641251599,3.2078,2742.0,2741.9,1.48096]
[1724641251815,0.00544265,2742.2,2742.1,0.36454]
[1724641252004,3.2078,2742.7,2742.5,0.36448]
[1724641252505,0.36442,2743.0,2742.5,4.01088]
[1724641252702,0.3891,2743.2,2742.5,4.39848]
[1724641252703,3.9613,2743.2,2742.5,4.39848]
[1724641253004,0.36441,2743.1,2742.5,4.39848]
[1724641253202,0.36441,2743.1,2742.5,4.75888]
[1724641253795,0.36444,2742.9,2742.5,0.748]
[1724641254002,0.36444,2742.9,2742.5,0.3604]
[1724641254305,4.5079,2743.2,2742.5,0.3604]
[1724641254599,4.5079,2743.2,2742.3,0.00546687]
[1724641254600,0.36773702,2742.6,2742.3,0.00546687]
[1724641254903,0.00326702,2742.6,2742.3,0.00546687]
[1724641256008,0.36449,2742.5,2742.3,0.00546687]
[1724641256204,0.36448,2742.5,2742.3,0.00546687]
[1724641256405,0.00326702,2742.6,2742.3,0.00546687]
[1724641256700,0.7158,2742.4,2742.3,0.00546687]
[1724641258102,0.3513,2742.4,2742.3,0.00546687]
[1724641258594,0.7158,2742.4,2742.3,0.00546687]
[1724641259309,3.9236,2742.4,2742.3,0.00546687]
[1724641261606,0.36455,2742.1,2741.8,0.36457]
[1724641261798,0.36455,2742.1,2741.8,0.71527]
[1724641261994,0.3767,2742.3,2741.6,3.2078]
[1724641262201,0.3767,2742.3,2741.8,0.71528]
[1724641262202,0.36454,2742.1,2741.8,0.71528]
[1724641262401,0.36455,2742.0,2741.8,0.3507]
[1724641262713,0.00546687,2742.2,2741.8,0.3507]
[1724641262911,0.00546687,2742.2,2741.8,0.71528]
[1724641263101,0.36454,2742.1,2741.8,0.71528]
[1724641263406,0.00546687,2742.2,2741.8,0.3507]
[1724641263407,0.36455,2742.0,2741.8,0.3507]
[1724641263605,0.36456,2741.9,2741.6,3.57786687]
[1724641263818,0.36459,2741.7,2741.6,3.21326687]
[1724641264009,0.36459,2741.7,2741.6,0.00546687]
[1724641264205,4.01179,2741.7,2741.6,0.00546687]
[1724641266700,3.6472,2741.7,2741.6,0.00546687]
[1724641266902,0.3514,2741.8,2741.6,0.37006687]
[1724641267208,0.3514,2741.8,2741.6,0.00546687]
[1724641267402,0.71598,2741.8,2741.6,0.00546687]
[1724641268302,0.36459,2741.7,2741.6,0.00546687]
[1724641268507,3.2078,2741.9,2741.6,0.00546687]
[1724641268903,3.57236,2741.9,2741.6,0.37006687]
[1724641269804,0.36459,2741.7,2741.6,0.00546687]
[1724641270203,4.01179,2741.7,2741.6,0.00546687]
[1724641271002,9.92327,2741.7,2741.0,0.00446928]
[1724641271203,3.15,2741.8,2741.0,0.00446928]
[1724641271204,1.0628,2741.6,2741.0,0.00446928]
[1724641271404,0.36463,2741.5,2741.0,0.00446928]
[1724641271711,0.36462,2741.5,2741.2,0.36465]
[1724641272109,0.36463,2741.4,2741.1,0.37012687]
[1724641272307,0.36464,2741.3,2741.1,0.00546687]
[1724641272908,0.36464,2741.4,2741.1,0.37013687]
[1724641273110,0.36466,2741.2,2741.1,0.00546687]
[1724641278913,0.36467,2741.1,2741.0,0.00446928]
[1724641279115,4.75397,2741.1,2741.0,0.00446928]
[1724641281212,4.39557,2741.1,2741.0,0.00446928]
[1724641281416,0.36467,2741.1,2741.0,0.00446928]
[1724641284615,0.72237,2741.1,2741.0,0.00446928]
[1724641284916,0.3647,2740.9,2740.8,0.00546687]
[1724641285820,0.3647,2740.9,2740.8,0.00866236]
[1724641286023,4.42645,2740.9,2740.8,0.00866236]
[1724641286228,0.36479,2740.2,2740.1,0.3721]
[1724641286520,0.36479,2740.2,2739.9,0.352]
[1724641286521,0.36482,2740.1,2739.9,0.352]
[1724641286714,6.3578,2740.2,2739.9,0.352]
[1724641286715,6.7226,2740.2,2739.9,0.352]
[1724641287219,3.21248151,2740.2,2740.1,0.3648]
[1724641287423,0.00468151,2740.2,2740.1,5.3648]
[1724641287723,0.00468151,2740.2,2740.1,9.0144]
[1724641288320,0.00546687,2740.3,2740.2,0.36479]
[1724641288522,0.00546687,2740.3,2740.2,4.01439]
[1724641288719,0.00546687,2740.3,2740.2,9.01439]
[1724641289118,3.2078,2740.5,2740.4,0.36476]
[1724641289323,0.00383308,2740.5,2740.4,5.36476]
[1724641289525,0.00383308,2740.5,2740.4,9.01356]
[1724641292323,0.00383308,2740.5,2740.4,9.39656]
[1724641295123,0.3869,2741.4,2740.5,3.6488]
[1724641295323,3.2078,2741.5,2741.3,0.36464]
[1724641295525,3.2078,2741.5,2741.4,0.7448]
[1724641296231,3.57657849,2741.5,2741.4,0.7448]
[1724641296433,0.00415849,2741.5,2741.4,1.10943]
[1724641297538,0.00415849,2741.5,2741.4,0.7448]
[1724641298429,0.00415849,2741.5,2741.4,1.1051]
[1724641299335,0.00415849,2741.5,2741.4,1.46973]
[1724641299832,0.00415849,2741.5,2741.4,5.11773]
[1724641301532,0.00415849,2741.5,2741.4,1.1051]
[1724641301929,0.00415849,2741.5,2741.4,1.46973]
[1724641305433,0.00415849,2741.5,2741.4,5.11773]
[1724641307337,0.00546687,2741.7,2741.6,0.3646]
[1724641307634,0.00546687,2741.7,2741.6,5.3646]
[1724641307828,0.00546687,2741.7,2741.6,9.0118]
[1724641308234,0.0088888,2741.7,2741.6,9.0118]
[1724641309728,0.0088888,2741.7,2741.4,1.1051]
[1724641310343,0.0088888,2741.7,2741.6,0.3646]
[1724641311838,0.0088888,2741.7,2741.6,4.0118]
[1724641319446,0.0088888,2741.7,2741.6,0.3646]
[1724641319640,0.0088888,2741.7,2741.6,4.0118]
[1724641321745,0.36445,2742.8,2741.8,0.91142]
[1724641321941,3.2078,2743.0,2742.6,0.36446]
[1724641321942,0.7408,2742.7,2742.6,0.36446]
[1724641322143,1.10526,2742.7,2742.4,0.36449]
[1724641322448,0.7408,2742.7,2742.4,0.3645]
[1724641322952,1.10984057,2742.7,2742.4,0.36819547]
[1724641323248,0.74538057,2742.7,2742.4,0.36819547]
[1724641323644,1.10984057,2742.7,2742.4,0.36819547]
[1724641324544,0.74538057,2742.7,2742.5,0.36448]
[1724641324750,0.36298057,2742.7,2742.5,1.09798]
[1724641325849,0.36298057,2742.7,2742.6,0.36447]
[1724641326051,0.00458057,2742.7,2742.6,0.36447]
[1724641326467,0.00458057,2742.7,2742.6,4.01087]
[1724641336354,3.2078,2743.3,2742.6,3.6464]
[1724641336557,3.2078,2743.3,2742.7,3.15]
[1724641336854,3.57218,2743.3,2742.9,0.36442]
[1724641337251,3.57218,2743.3,2743.0,0.36442]
[1724641337451,3.57643539,2743.3,2743.0,0.36442]
[1724641338551,3.57643539,2743.3,2743.0,0.72062]
[1724641339562,3.57643539,2743.3,2742.9,0.00546687]
[1724641339563,3.21205539,2743.3,2743.1,0.3644]
[1724641339856,3.21205539,2743.3,2743.0,1.47951]
[1724641340362,3.57643539,2743.3,2743.0,1.47951]
[1724641340956,3.21205539,2743.3,2743.0,1.47951]
[1724641342457,3.21205539,2743.3,2743.1,0.3644]
[1724641342663,3.21205539,2743.3,2743.0,1.47951]
[1724641343261,3.21205539,2743.3,2743.1,0.3644]
[1724641344358,0.00425539,2743.3,2743.1,0.3644]
[1724641344560,0.00425539,2743.3,2743.0,1.47951]
[1724641345765,3.21205539,2743.3,2743.0,1.47951]
[1724641347167,3.21205539,2743.3,2743.1,0.3644]
[1724641347661,3.21205539,2743.3,2743.0,1.47951]